[Event "Titled Tuesday Blitz November 14 Early 2023"]
[White "Wahlund, Max"]
[Black "Azali, Tannaz"]
[WhiteFideId "1741861"]
[BlackFideId "12537721"]
[WhiteElo "2132"]
[BlackElo "2401"]
[Result "1/2-1/2"]
[Round "3"]
[TimeControl "180+1"]
[Date "2023.11.14"]
[WhiteClock "0:00:09"]
[BlackClock "0:00:21"]
[Board "217"]

1. d4 {[%clk 0:02:56]}  Nf6 {[%clk 0:02:59]} 2. c4 {[%clk 0:02:57]}  e6 {[%clk 0:03:00]} 3. g3 {[%clk 0:02:56]}  d5 {[%clk 0:03:00]} 4. Bg2 {[%clk 0:02:57]}  dxc4 {[%clk 0:03:00]} 5. Nf3 {[%clk 0:02:57]}  Bd7 {[%clk 0:03:00]} 6. O-O {[%clk 0:02:57]}  Bc6 {[%clk 0:02:56]} 7. Nbd2 {[%clk 0:02:48]}  b5 {[%clk 0:02:55]} 8. a4 {[%clk 0:02:47]}  a6 {[%clk 0:02:55]} 9. Qc2 {[%clk 0:02:43]}  Nbd7 {[%clk 0:02:51]} 10. b3 {[%clk 0:02:44]}  Bb7 {[%clk 0:02:37]} 11. bxc4 {[%clk 0:02:41]}  bxc4 {[%clk 0:02:34]} 12. Nxc4 {[%clk 0:02:42]}  c5 {[%clk 0:02:34]} 13. Bf4 {[%clk 0:02:34]}  Rc8 {[%clk 0:02:33]} 14. Nd6+ {[%clk 0:02:29]}  Bxd6 {[%clk 0:02:33]} 15. Bxd6 {[%clk 0:02:30]}  cxd4 {[%clk 0:02:32]} 16. Qb2 {[%clk 0:02:29]}  Qb6 {[%clk 0:02:16]} 17. Qxd4 {[%clk 0:02:25]}  Qxd4 {[%clk 0:02:14]} 18. Nxd4 {[%clk 0:02:26]}  Bxg2 {[%clk 0:02:14]} 19. Kxg2 {[%clk 0:02:26]}  Ne4 {[%clk 0:02:14]} 20. Ba3 {[%clk 0:02:18]}  Nec5 {[%clk 0:02:10]} 21. Rfc1 {[%clk 0:02:09]}  O-O {[%clk 0:01:55]} 22. Rab1 {[%clk 0:01:56]}  Rfd8 {[%clk 0:01:53]} 23. a5 {[%clk 0:01:26]}  g6 {[%clk 0:01:49]} 24. Rc2 {[%clk 0:01:05]}  e5 {[%clk 0:01:34]} 25. Nf3 {[%clk 0:01:01]}  Ne6 {[%clk 0:01:25]} 26. Rxc8 {[%clk 0:00:53]}  Rxc8 {[%clk 0:01:26]} 27. Rb7 {[%clk 0:00:53]}  Rc7 {[%clk 0:01:22]} 28. Rxc7 {[%clk 0:00:45]}  Nxc7 {[%clk 0:01:23]} 29. Bd6 {[%clk 0:00:45]}  Nb5 {[%clk 0:01:09]} 30. Bxe5 {[%clk 0:00:45]}  Nxe5 {[%clk 0:01:08]} 31. Nxe5 {[%clk 0:00:46]}  Nd6 {[%clk 0:01:06]} 32. Nc6 {[%clk 0:00:44]}  Nc4 {[%clk 0:01:05]} 33. Nb4 {[%clk 0:00:43]}  Nxa5 {[%clk 0:01:05]} 34. Nxa6 {[%clk 0:00:44]}  f5 {[%clk 0:01:05]} 35. Nc5 {[%clk 0:00:44]}  Nc6 {[%clk 0:01:05]} 36. e3 {[%clk 0:00:44]}  Kf7 {[%clk 0:01:05]} 37. h4 {[%clk 0:00:44]}  Kf6 {[%clk 0:01:05]} 38. f4 {[%clk 0:00:43]}  Ne7 {[%clk 0:01:05]} 39. Kf3 {[%clk 0:00:42]}  Nd5 {[%clk 0:01:05]} 40. Nd7+ {[%clk 0:00:42]}  Kf7 {[%clk 0:01:04]} 41. Ne5+ {[%clk 0:00:42]}  Kf6 {[%clk 0:01:04]} 42. g4 {[%clk 0:00:38]}  fxg4+ {[%clk 0:01:04]} 43. Nxg4+ {[%clk 0:00:39]}  Kf7 {[%clk 0:01:01]} 44. e4 {[%clk 0:00:39]}  Nc7 {[%clk 0:01:00]} 45. Ne5+ {[%clk 0:00:39]}  Kf6 {[%clk 0:01:00]} 46. Kg4 {[%clk 0:00:37]}  Ne6 {[%clk 0:00:58]} 47. Nd7+ {[%clk 0:00:35]}  Ke7 {[%clk 0:00:57]} 48. Nb6 {[%clk 0:00:34]}  Kf6 {[%clk 0:00:56]} 49. Nd5+ {[%clk 0:00:34]}  Kg7 {[%clk 0:00:56]} 50. f5 {[%clk 0:00:28]}  gxf5+ {[%clk 0:00:56]} 51. exf5 {[%clk 0:00:29]}  Nd4 {[%clk 0:00:56]} 52. f6+ {[%clk 0:00:24]}  Kf7 {[%clk 0:00:57]} 53. Kg5 {[%clk 0:00:23]}  Nf3+ {[%clk 0:00:54]} 54. Kg4 {[%clk 0:00:20]}  Ne5+ {[%clk 0:00:52]} 55. Kf5 {[%clk 0:00:19]}  Nd7 {[%clk 0:00:52]} 56. h5 {[%clk 0:00:17]}  Nc5 {[%clk 0:00:49]} 57. Ne3 {[%clk 0:00:14]}  Nd7 {[%clk 0:00:49]} 58. Ng4 {[%clk 0:00:13]}  Nc5 {[%clk 0:00:47]} 59. Ne5+ {[%clk 0:00:14]}  Kf8 {[%clk 0:00:47]} 60. Kg5 {[%clk 0:00:13]}  Ne4+ {[%clk 0:00:44]} 61. Kf5 {[%clk 0:00:13]}  Nc5 {[%clk 0:00:44]} 62. Nf3 {[%clk 0:00:11]}  Kf7 {[%clk 0:00:30]} 63. Ng5+ {[%clk 0:00:11]}  Kg8 {[%clk 0:00:30]} 64. f7+ {[%clk 0:00:11]}  Kg7 {[%clk 0:00:30]} 65. Ke5 {[%clk 0:00:09]}  h6 {[%clk 0:00:26]} 66. Ne6+ {[%clk 0:00:08]}  Nxe6 {[%clk 0:00:21]} 67. Kxe6 {[%clk 0:00:09]}  Kf8 {[%clk 0:00:21]} 68. Kf6 {[%clk 0:00:09]} 1/2-1/2


[Site "https://www.chess.com"]

[Event "Titled Tuesday Blitz November 14 Early 2023"]
[White "Dahlgren, James Allen"]
[Black "Cheer_Down"]
[WhiteFideId "22256873"]
[WhiteElo "2131"]
[BlackElo "2385"]
[Result "0-1"]
[Round "3"]
[TimeControl "180+1"]
[Date "2023.11.14"]
[WhiteClock "0:01:49"]
[BlackClock "0:02:16"]
[Board "219"]

1. e4 {[%clk 0:03:00]}  e5 {[%clk 0:03:00]} 2. Nf3 {[%clk 0:03:00]}  Nc6 {[%clk 0:03:00]} 3. Nc3 {[%clk 0:03:00]}  Nf6 {[%clk 0:02:59]} 4. d4 {[%clk 0:02:58]}  exd4 {[%clk 0:02:59]} 5. Nd5 {[%clk 0:02:58]}  Nb4 {[%clk 0:02:56]} 6. Bg5 {[%clk 0:02:42]}  Nbxd5 {[%clk 0:02:46]} 7. exd5 {[%clk 0:02:43]}  Bb4+ {[%clk 0:02:42]} 8. c3 {[%clk 0:02:13]}  dxc3 {[%clk 0:02:42]} 9. Qe2+ {[%clk 0:02:14]}  Qe7 {[%clk 0:02:37]} 10. Qxe7+ {[%clk 0:02:07]}  Bxe7 {[%clk 0:02:33]} 11. Bxf6 {[%clk 0:02:02]}  Bxf6 {[%clk 0:02:33]} 12. O-O-O {[%clk 0:02:02]}  cxb2+ {[%clk 0:02:31]} 13. Kc2 {[%clk 0:02:02]}  d6 {[%clk 0:02:31]} 14. Bb5+ {[%clk 0:01:59]}  Bd7 {[%clk 0:02:30]} 15. Rhe1+ {[%clk 0:01:58]}  Kd8 {[%clk 0:02:30]} 16. Bxd7 {[%clk 0:01:56]}  Kxd7 {[%clk 0:02:30]} 17. Nd4 {[%clk 0:01:57]}  Rhe8 {[%clk 0:02:27]} 18. Rxe8 {[%clk 0:01:54]}  Rxe8 {[%clk 0:02:27]} 19. Kxb2 {[%clk 0:01:54]}  Re2+ {[%clk 0:02:18]} 20. Kc3 {[%clk 0:01:52]}  Rxf2 {[%clk 0:02:16]} 21. Kc4 {[%clk 0:01:52]}  Rf4 {[%clk 0:02:16]} 22. g3 {[%clk 0:01:51]}  Rxd4+ {[%clk 0:02:15]} 23. Rxd4 {[%clk 0:01:52]}  Bxd4 {[%clk 0:02:15]} 24. Kxd4 {[%clk 0:01:49]}  c6 {[%clk 0:02:16]} 0-1


[Site "https://www.chess.com"]

[Event "Titled Tuesday Blitz November 14 Early 2023"]
[White "Manon-og, Ramon Jr."]
[Black "Nikulina, Alena"]
[WhiteFideId "5200776"]
[BlackFideId "4172051"]
[WhiteElo "2351"]
[BlackElo "2060"]
[Result "1-0"]
[Round "3"]
[TimeControl "180+1"]
[Date "2023.11.14"]
[WhiteClock "0:00:09"]
[BlackClock "0:01:30"]
[Board "228"]

1. e4 {[%clk 0:02:37]}  c5 {[%clk 0:02:59]} 2. Nf3 {[%clk 0:02:30]}  e6 {[%clk 0:02:59]} 3. g3 {[%clk 0:02:29]}  Nc6 {[%clk 0:02:57]} 4. Bg2 {[%clk 0:02:27]}  d5 {[%clk 0:02:57]} 5. exd5 {[%clk 0:02:27]}  exd5 {[%clk 0:02:57]} 6. d4 {[%clk 0:02:27]}  Nf6 {[%clk 0:02:56]} 7. O-O {[%clk 0:02:27]}  Be6 {[%clk 0:02:56]} 8. dxc5 {[%clk 0:02:20]}  Bxc5 {[%clk 0:02:56]} 9. Ng5 {[%clk 0:02:20]}  O-O {[%clk 0:02:55]} 10. Nxe6 {[%clk 0:02:20]}  fxe6 {[%clk 0:02:55]} 11. Nc3 {[%clk 0:02:13]}  Qd7 {[%clk 0:02:46]} 12. Bg5 {[%clk 0:02:09]}  Rae8 {[%clk 0:02:46]} 13. Qd2 {[%clk 0:02:01]}  d4 {[%clk 0:02:46]} 14. Bxf6 {[%clk 0:01:57]}  gxf6 {[%clk 0:02:46]} 15. Ne4 {[%clk 0:01:56]}  Bb6 {[%clk 0:02:40]} 16. Rad1 {[%clk 0:01:49]}  e5 {[%clk 0:02:40]} 17. Qh6 {[%clk 0:01:44]}  Qg7 {[%clk 0:02:38]} 18. Qh5 {[%clk 0:01:41]}  Qg6 {[%clk 0:02:37]} 19. Qh4 {[%clk 0:01:37]}  f5 {[%clk 0:02:34]} 20. Ng5 {[%clk 0:01:33]}  e4 {[%clk 0:02:28]} 21. Qf4 {[%clk 0:01:19]}  Ne5 {[%clk 0:02:17]} 22. h4 {[%clk 0:01:11]}  d3 {[%clk 0:02:14]} 23. cxd3 {[%clk 0:01:03]}  Nxd3 {[%clk 0:02:14]} 24. Qd2 {[%clk 0:00:56]}  h6 {[%clk 0:02:13]} 25. Nh3 {[%clk 0:00:23]}  Ne5 {[%clk 0:02:03]} 26. Qd5+ {[%clk 0:00:17]}  Kh8 {[%clk 0:01:56]} 27. Kh1 {[%clk 0:00:17]}  Ng4 {[%clk 0:01:50]} 28. Nf4 {[%clk 0:00:17]}  Qf7 {[%clk 0:01:47]} 29. Qxf7 {[%clk 0:00:16]}  Rxf7 {[%clk 0:01:47]} 30. Rd6 {[%clk 0:00:16]}  Nxf2+ {[%clk 0:01:45]} 31. Kg1 {[%clk 0:00:15]}  Nd3+ {[%clk 0:01:38]} 32. Kh2 {[%clk 0:00:15]}  Nxf4 {[%clk 0:01:39]} 33. gxf4 {[%clk 0:00:15]}  Bc7 {[%clk 0:01:39]} 34. Rxh6+ {[%clk 0:00:14]}  Kg7 {[%clk 0:01:39]} 35. Rh5 {[%clk 0:00:14]}  e3 {[%clk 0:01:38]} 36. Bf3 {[%clk 0:00:13]}  Bxf4+ {[%clk 0:01:37]} 37. Kh3 {[%clk 0:00:14]}  Kf6 {[%clk 0:01:35]} 38. Bd5 {[%clk 0:00:11]}  Rg7 {[%clk 0:01:33]} 39. Rxf4 {[%clk 0:00:11]}  e2 {[%clk 0:01:32]} 40. Rhxf5+ {[%clk 0:00:11]}  Kg6 {[%clk 0:01:32]} 41. Rg5+ {[%clk 0:00:09]}  Kh6 {[%clk 0:01:30]} 42. Rf6+ {[%clk 0:00:09]}  Kh7 {[%clk 0:01:30]} 43. Rh5# {[%clk 0:00:09]} 1-0


[Site "https://www.chess.com"]

[Event "Titled Tuesday Blitz November 14 Early 2023"]
[White "Garrido, Denis"]
[Black "taleslascando"]
[WhiteFideId "601217"]
[WhiteElo "2341"]
[BlackElo "2009"]
[Result "1-0"]
[Round "3"]
[TimeControl "180+1"]
[Date "2023.11.14"]
[WhiteClock "0:01:29"]
[BlackClock "0:00:01"]
[Board "230"]

1. e4 {[%clk 0:03:00]}  e5 {[%clk 0:02:50]} 2. Nf3 {[%clk 0:03:00]}  Nc6 {[%clk 0:02:50]} 3. Bc4 {[%clk 0:03:00]}  Bc5 {[%clk 0:02:50]} 4. c3 {[%clk 0:03:00]}  Nf6 {[%clk 0:02:50]} 5. d3 {[%clk 0:03:00]}  a5 {[%clk 0:02:46]} 6. O-O {[%clk 0:02:59]}  d6 {[%clk 0:02:47]} 7. Re1 {[%clk 0:02:57]}  Ba7 {[%clk 0:02:43]} 8. Bb3 {[%clk 0:02:54]}  O-O {[%clk 0:02:40]} 9. h3 {[%clk 0:02:53]}  Ne7 {[%clk 0:02:39]} 10. Nbd2 {[%clk 0:02:47]}  Ng6 {[%clk 0:02:39]} 11. Nf1 {[%clk 0:02:47]}  Nh5 {[%clk 0:02:23]} 12. d4 {[%clk 0:02:46]}  Nhf4 {[%clk 0:02:07]} 13. Be3 {[%clk 0:02:28]}  Qe7 {[%clk 0:01:49]} 14. Ng3 {[%clk 0:02:25]}  c6 {[%clk 0:01:37]} 15. Nf5 {[%clk 0:02:14]}  Bxf5 {[%clk 0:01:27]} 16. exf5 {[%clk 0:02:15]}  Nh4 {[%clk 0:01:22]} 17. Bxf4 {[%clk 0:02:13]}  Nxf5 {[%clk 0:00:46]} 18. dxe5 {[%clk 0:02:11]}  d5 {[%clk 0:00:41]} 19. Bc2 {[%clk 0:02:09]}  Qe6 {[%clk 0:00:38]} 20. Qd3 {[%clk 0:02:07]}  g6 {[%clk 0:00:36]} 21. Ng5 {[%clk 0:01:58]}  Qd7 {[%clk 0:00:33]} 22. e6 {[%clk 0:01:57]}  fxe6 {[%clk 0:00:31]} 23. Rxe6 {[%clk 0:01:54]}  Ng7 {[%clk 0:00:16]} 24. Be3 {[%clk 0:01:34]}  Bxe3 {[%clk 0:00:11]} 25. Rxe3 {[%clk 0:01:33]}  Rf5 {[%clk 0:00:09]} 26. Nf3 {[%clk 0:01:31]}  Raf8 {[%clk 0:00:08]} 27. Rae1 {[%clk 0:01:31]}  Ne8 {[%clk 0:00:07]} 28. Re7 {[%clk 0:01:29]}  Nd6 {[%clk 0:00:01]} 29. Rxd7 {[%clk 0:01:29]} 1-0


[Site "https://www.chess.com"]

[Event "Titled Tuesday Blitz November 14 Early 2023"]
[White "Castillo Pena, Patricia Evarista"]
[Black "komogro"]
[WhiteFideId "6412106"]
[WhiteElo "1998"]
[BlackElo "2328"]
[Result "1-0"]
[Round "3"]
[TimeControl "180+1"]
[Date "2023.11.14"]
[WhiteClock "0:00:43"]
[BlackClock "0:00:08"]
[Board "232"]

1. d4 {[%clk 0:03:00]}  Nf6 {[%clk 0:02:52]} 2. Nf3 {[%clk 0:02:59]}  e6 {[%clk 0:02:51]} 3. e3 {[%clk 0:02:59]}  d5 {[%clk 0:02:51]} 4. Bd3 {[%clk 0:02:58]}  c5 {[%clk 0:02:51]} 5. b3 {[%clk 0:02:58]}  Nc6 {[%clk 0:02:51]} 6. Bb2 {[%clk 0:02:56]}  cxd4 {[%clk 0:02:51]} 7. exd4 {[%clk 0:02:56]}  Bd6 {[%clk 0:02:50]} 8. O-O {[%clk 0:02:55]}  O-O {[%clk 0:02:47]} 9. Nbd2 {[%clk 0:02:54]}  b6 {[%clk 0:02:45]} 10. a3 {[%clk 0:02:54]}  Nd7 {[%clk 0:02:38]} 11. Qe2 {[%clk 0:02:53]}  Qc7 {[%clk 0:02:34]} 12. c4 {[%clk 0:02:49]}  dxc4 {[%clk 0:02:31]} 13. bxc4 {[%clk 0:02:48]}  Be7 {[%clk 0:02:29]} 14. Rac1 {[%clk 0:02:46]}  Bb7 {[%clk 0:02:27]} 15. d5 {[%clk 0:02:38]}  Nd8 {[%clk 0:02:15]} 16. Rfe1 {[%clk 0:02:23]}  Nc5 {[%clk 0:02:12]} 17. Bb1 {[%clk 0:02:20]}  Bd6 {[%clk 0:02:08]} 18. Ne5 {[%clk 0:02:12]}  exd5 {[%clk 0:02:02]} 19. cxd5 {[%clk 0:02:06]}  Bxd5 {[%clk 0:01:39]} 20. Qh5 {[%clk 0:01:59]}  g6 {[%clk 0:01:35]} 21. Nxg6 {[%clk 0:01:53]}  fxg6 {[%clk 0:01:29]} 22. Qxd5+ {[%clk 0:01:53]}  Nf7 {[%clk 0:01:17]} 23. Ba2 {[%clk 0:01:42]}  Bxh2+ {[%clk 0:01:10]} 24. Kh1 {[%clk 0:01:40]}  Rad8 {[%clk 0:01:10]} 25. Qg5 {[%clk 0:00:59]}  Bf4 {[%clk 0:01:04]} 26. Qf6 {[%clk 0:00:57]}  Be5 {[%clk 0:00:14]} 27. Rxe5 {[%clk 0:00:56]}  Rxd2 {[%clk 0:00:13]} 28. Bc3 {[%clk 0:00:48]}  Qd8 {[%clk 0:00:09]} 29. Re7 {[%clk 0:00:45]}  Rxf2 {[%clk 0:00:08]} 30. Qg7# {[%clk 0:00:43]} 1-0


[Site "https://www.chess.com"]

[Event "Titled Tuesday Blitz November 14 Early 2023"]
[White "Lopez Del Alamo, Antonio"]
[Black "Lohani, Sujana"]
[WhiteFideId "2227339"]
[BlackFideId "12311987"]
[WhiteElo "2327"]
[BlackElo "1974"]
[Result "1-0"]
[Round "3"]
[TimeControl "180+1"]
[Date "2023.11.14"]
[WhiteClock "0:02:11"]
[BlackClock "0:00:51"]
[Board "233"]

1. e4 {[%clk 0:03:00]}  g6 {[%clk 0:03:00]} 2. d4 {[%clk 0:02:59]}  Bg7 {[%clk 0:03:00]} 3. Nc3 {[%clk 0:02:59]}  d6 {[%clk 0:03:01]} 4. h4 {[%clk 0:02:55]}  Nf6 {[%clk 0:03:01]} 5. h5 {[%clk 0:02:52]}  Bg4 {[%clk 0:02:53]} 6. f3 {[%clk 0:02:51]}  Bd7 {[%clk 0:02:34]} 7. h6 {[%clk 0:02:47]}  Bf8 {[%clk 0:02:33]} 8. g4 {[%clk 0:02:36]}  e5 {[%clk 0:02:29]} 9. Be3 {[%clk 0:02:33]}  exd4 {[%clk 0:02:27]} 10. Bxd4 {[%clk 0:02:31]}  Nc6 {[%clk 0:02:27]} 11. g5 {[%clk 0:02:29]}  Nxd4 {[%clk 0:01:35]} 12. Qxd4 {[%clk 0:02:30]}  Be7 {[%clk 0:01:32]} 13. Nd5 {[%clk 0:02:20]}  c5 {[%clk 0:01:14]} 14. Nxf6+ {[%clk 0:02:16]}  Bxf6 {[%clk 0:01:12]} 15. Qxf6 {[%clk 0:02:17]}  Qxf6 {[%clk 0:01:10]} 16. gxf6 {[%clk 0:02:17]}  Bc6 {[%clk 0:01:02]} 17. O-O-O {[%clk 0:02:16]}  O-O-O {[%clk 0:01:02]} 18. Nh3 {[%clk 0:02:15]}  Rhe8 {[%clk 0:01:02]} 19. Ng5 {[%clk 0:02:13]}  Rd7 {[%clk 0:00:59]} 20. Nxh7 {[%clk 0:02:11]}  Rh8 {[%clk 0:00:51]} 21. Ng5 {[%clk 0:02:11]} 1-0


[Site "https://www.chess.com"]

[Event "Titled Tuesday Blitz November 14 Early 2023"]
[White "DonCiao"]
[Black "Vargas, Mauricio"]
[BlackFideId "4404572"]
[WhiteElo "2127"]
[BlackElo "1864"]
[Result "1-0"]
[Round "3"]
[TimeControl "180+1"]
[Date "2023.11.14"]
[WhiteClock "0:01:14"]
[BlackClock "0:01:06"]
[Board "237"]

1. c4 {[%clk 0:03:00]}  e5 {[%clk 0:02:57]} 2. g3 {[%clk 0:03:01]}  Nc6 {[%clk 0:02:52]} 3. Nc3 {[%clk 0:02:58]}  f5 {[%clk 0:02:51]} 4. Nf3 {[%clk 0:02:54]}  Nf6 {[%clk 0:02:48]} 5. d4 {[%clk 0:02:48]}  e4 {[%clk 0:02:47]} 6. Nh4 {[%clk 0:02:44]}  g6 {[%clk 0:02:42]} 7. Bg5 {[%clk 0:02:35]}  Bb4 {[%clk 0:02:30]} 8. Qb3 {[%clk 0:02:27]}  Bxc3+ {[%clk 0:02:29]} 9. Qxc3 {[%clk 0:02:27]}  O-O {[%clk 0:02:28]} 10. d5 {[%clk 0:02:15]}  Nb8 {[%clk 0:02:23]} 11. Bh3 {[%clk 0:02:09]}  d6 {[%clk 0:02:22]} 12. O-O {[%clk 0:02:07]}  Kg7 {[%clk 0:02:21]} 13. f3 {[%clk 0:02:02]}  h6 {[%clk 0:02:17]} 14. Be3 {[%clk 0:01:55]}  Kh7 {[%clk 0:02:01]} 15. Bd4 {[%clk 0:01:49]}  Nbd7 {[%clk 0:01:52]} 16. Nxf5 {[%clk 0:01:42]}  gxf5 {[%clk 0:01:51]} 17. Bxf5+ {[%clk 0:01:42]}  Kg8 {[%clk 0:01:50]} 18. Be6+ {[%clk 0:01:42]}  Kh7 {[%clk 0:01:46]} 19. fxe4 {[%clk 0:01:34]}  Nxe4 {[%clk 0:01:44]} 20. Qd3 {[%clk 0:01:30]}  Nf6 {[%clk 0:01:25]} 21. Bxf6 {[%clk 0:01:21]}  Rxf6 {[%clk 0:01:24]} 22. Qxe4+ {[%clk 0:01:20]}  Kg7 {[%clk 0:01:20]} 23. Rxf6 {[%clk 0:01:17]}  Qxf6 {[%clk 0:01:18]} 24. Rf1 {[%clk 0:01:16]}  Qg5 {[%clk 0:01:08]} 25. Rf7+ {[%clk 0:01:14]}  Kh8 {[%clk 0:01:06]} 26. Qh7# {[%clk 0:01:14]} 1-0


[Site "https://www.chess.com"]

[Event "Titled Tuesday Blitz November 14 Early 2023"]
[White "Nakamura, Hikaru"]
[Black "Kovalev, Vladislav"]
[WhiteFideId "2016192"]
[BlackFideId "13504398"]
[WhiteElo "3330"]
[BlackElo "2906"]
[Result "1-0"]
[Round "4"]
[TimeControl "180+1"]
[Date "2023.11.14"]
[WhiteClock "0:00:33"]
[BlackClock "0:00:00"]
[Board "1"]

1. g3 {[%clk 0:03:00]}  Nf6 {[%clk 0:02:57]} 2. Bg2 {[%clk 0:03:00]}  d5 {[%clk 0:02:58]} 3. d3 {[%clk 0:02:55]}  e5 {[%clk 0:02:57]} 4. Nd2 {[%clk 0:02:54]}  c6 {[%clk 0:02:48]} 5. e4 {[%clk 0:02:54]}  dxe4 {[%clk 0:02:49]} 6. dxe4 {[%clk 0:02:54]}  Bc5 {[%clk 0:02:46]} 7. Ngf3 {[%clk 0:02:52]}  Qe7 {[%clk 0:02:44]} 8. O-O {[%clk 0:02:47]}  O-O {[%clk 0:02:44]} 9. b3 {[%clk 0:02:44]}  Bg4 {[%clk 0:02:41]} 10. h3 {[%clk 0:02:44]}  Bxf3 {[%clk 0:02:41]} 11. Qxf3 {[%clk 0:02:43]}  Nbd7 {[%clk 0:02:35]} 12. Nc4 {[%clk 0:02:33]}  Nb6 {[%clk 0:02:16]} 13. Nb2 {[%clk 0:02:22]}  a5 {[%clk 0:01:49]} 14. Nd3 {[%clk 0:02:16]}  Bd4 {[%clk 0:01:44]} 15. Rb1 {[%clk 0:02:16]}  a4 {[%clk 0:01:45]} 16. Bg5 {[%clk 0:02:00]}  axb3 {[%clk 0:01:44]} 17. axb3 {[%clk 0:02:00]}  Nbd7 {[%clk 0:01:39]} 18. Bd2 {[%clk 0:01:57]}  Ra2 {[%clk 0:01:32]} 19. Nb4 {[%clk 0:01:57]}  Ra7 {[%clk 0:01:26]} 20. h4 {[%clk 0:01:49]}  Nc5 {[%clk 0:01:10]} 21. Qe2 {[%clk 0:01:38]}  Ne6 {[%clk 0:01:06]} 22. c3 {[%clk 0:01:36]}  Bb6 {[%clk 0:01:02]} 23. Nd3 {[%clk 0:01:32]}  Nc5 {[%clk 0:00:59]} 24. Be3 {[%clk 0:01:22]}  Nfd7 {[%clk 0:00:59]} 25. Nb2 {[%clk 0:01:11]}  Ra2 {[%clk 0:00:46]} 26. Qc4 {[%clk 0:01:08]}  Rfa8 {[%clk 0:00:46]} 27. Bh3 {[%clk 0:00:59]}  Ne6 {[%clk 0:00:18]} 28. Bc1 {[%clk 0:00:55]}  Bc7 {[%clk 0:00:10]} 29. b4 {[%clk 0:00:53]}  R2a7 {[%clk 0:00:09]} 30. Rd1 {[%clk 0:00:50]}  Nb6 {[%clk 0:00:08]} 31. Qe2 {[%clk 0:00:49]}  Na4 {[%clk 0:00:08]} 32. Nxa4 {[%clk 0:00:46]}  Rxa4 {[%clk 0:00:09]} 33. Be3 {[%clk 0:00:46]}  Ra2 {[%clk 0:00:10]} 34. Qc4 {[%clk 0:00:44]}  Nf4 {[%clk 0:00:02]} 35. Bxf4 {[%clk 0:00:33]}  exf4 {[%clk 0:00:00]} 36. Rd7 {[%clk 0:00:33]} 1-0


[Site "https://www.chess.com"]

[Event "Titled Tuesday Blitz November 14 Early 2023"]
[White "Nihal Sarin"]
[Black "Salinas Herrera, Pablo"]
[WhiteFideId "25092340"]
[BlackFideId "3407128"]
[WhiteElo "3122"]
[BlackElo "2900"]
[Result "1-0"]
[Round "4"]
[TimeControl "180+1"]
[Date "2023.11.14"]
[WhiteClock "0:01:41"]
[BlackClock "0:02:29"]
[Board "3"]

1. d4 {[%clk 0:02:56]}  d5 {[%clk 0:02:58]} 2. c4 {[%clk 0:02:50]}  e6 {[%clk 0:02:58]} 3. Nf3 {[%clk 0:02:49]}  Nf6 {[%clk 0:02:58]} 4. Nc3 {[%clk 0:02:42]}  c6 {[%clk 0:02:58]} 5. Bg5 {[%clk 0:02:29]}  Nbd7 {[%clk 0:02:57]} 6. e3 {[%clk 0:02:28]}  Qa5 {[%clk 0:02:57]} 7. Nd2 {[%clk 0:02:11]}  dxc4 {[%clk 0:02:57]} 8. Bxf6 {[%clk 0:02:08]}  Nxf6 {[%clk 0:02:58]} 9. Nxc4 {[%clk 0:02:09]}  Qc7 {[%clk 0:02:58]} 10. Rc1 {[%clk 0:02:09]}  Be7 {[%clk 0:02:58]} 11. Bd3 {[%clk 0:02:08]}  O-O {[%clk 0:02:59]} 12. O-O {[%clk 0:02:09]}  Rd8 {[%clk 0:02:59]} 13. a3 {[%clk 0:02:05]}  c5 {[%clk 0:02:55]} 14. Nb5 {[%clk 0:01:54]}  Qb8 {[%clk 0:02:55]} 15. dxc5 {[%clk 0:01:45]}  Bxc5 {[%clk 0:02:50]} 16. Bxh7+ {[%clk 0:01:44]}  Kxh7 {[%clk 0:02:32]} 17. Qxd8 {[%clk 0:01:45]}  Bd7 {[%clk 0:02:29]} 18. Qxb8 {[%clk 0:01:40]}  Rxb8 {[%clk 0:02:29]} 19. Nc3 {[%clk 0:01:41]} 1-0


[Site "https://www.chess.com"]

[Event "Titled Tuesday Blitz November 14 Early 2023"]
[White "Steinberg, Nitzan"]
[Black "Andreikin, Dmitry"]
[WhiteFideId "2801795"]
[BlackFideId "4158814"]
[WhiteElo "2893"]
[BlackElo "3120"]
[Result "0-1"]
[Round "4"]
[TimeControl "180+1"]
[Date "2023.11.14"]
[WhiteClock "0:00:00"]
[BlackClock "0:00:06"]
[Board "4"]

1. e4 {[%clk 0:03:00]}  c5 {[%clk 0:02:56]} 2. Nf3 {[%clk 0:03:01]}  g6 {[%clk 0:02:53]} 3. c3 {[%clk 0:03:00]}  d5 {[%clk 0:02:52]} 4. e5 {[%clk 0:02:57]}  Nc6 {[%clk 0:02:47]} 5. d4 {[%clk 0:02:55]}  Bg4 {[%clk 0:02:46]} 6. Be2 {[%clk 0:02:46]}  Bxf3 {[%clk 0:02:39]} 7. Bxf3 {[%clk 0:02:46]}  cxd4 {[%clk 0:02:40]} 8. cxd4 {[%clk 0:02:45]}  e6 {[%clk 0:02:40]} 9. Nc3 {[%clk 0:02:33]}  Qb6 {[%clk 0:02:33]} 10. Ne2 {[%clk 0:02:34]}  Nge7 {[%clk 0:02:24]} 11. g4 {[%clk 0:02:23]}  Bg7 {[%clk 0:02:20]} 12. h4 {[%clk 0:01:52]}  h5 {[%clk 0:01:49]} 13. Kf1 {[%clk 0:01:36]}  hxg4 {[%clk 0:01:39]} 14. Bxg4 {[%clk 0:01:36]}  O-O-O {[%clk 0:01:39]} 15. b4 {[%clk 0:01:20]}  Kb8 {[%clk 0:01:31]} 16. a4 {[%clk 0:01:14]}  f6 {[%clk 0:01:10]} 17. b5 {[%clk 0:01:02]}  Na5 {[%clk 0:01:07]} 18. Ba3 {[%clk 0:00:53]}  Nf5 {[%clk 0:01:00]} 19. Bc5 {[%clk 0:00:53]}  Qc7 {[%clk 0:00:58]} 20. Rc1 {[%clk 0:00:50]}  Nc4 {[%clk 0:00:57]} 21. Bxf5 {[%clk 0:00:34]}  gxf5 {[%clk 0:00:44]} 22. Nf4 {[%clk 0:00:23]}  Qf7 {[%clk 0:00:37]} 23. exf6 {[%clk 0:00:24]}  Bxf6 {[%clk 0:00:37]} 24. Qe2 {[%clk 0:00:13]}  Rde8 {[%clk 0:00:28]} 25. h5 {[%clk 0:00:11]}  Bg5 {[%clk 0:00:27]} 26. Rxc4 {[%clk 0:00:11]}  dxc4 {[%clk 0:00:25]} 27. Ng6 {[%clk 0:00:11]}  Rh7 {[%clk 0:00:18]} 28. Qxc4 {[%clk 0:00:11]}  Rxh5 {[%clk 0:00:08]} 29. Bd6+ {[%clk 0:00:09]}  Ka8 {[%clk 0:00:07]} 30. Rxh5 {[%clk 0:00:08]}  Qxg6 {[%clk 0:00:08]} 31. Rh3 {[%clk 0:00:07]}  Qg8 {[%clk 0:00:08]} 32. Be5 {[%clk 0:00:06]}  Rc8 {[%clk 0:00:08]} 33. Qxc8+ {[%clk 0:00:05]}  Qxc8 {[%clk 0:00:07]} 34. Rh8 {[%clk 0:00:06]}  Bd8 {[%clk 0:00:06]} 35. Bf6 {[%clk 0:00:06]}  Qc4+ {[%clk 0:00:06]} 36. Kg1 {[%clk 0:00:05]}  b6 {[%clk 0:00:06]} 37. Rxd8+ {[%clk 0:00:05]}  Kb7 {[%clk 0:00:06]} 38. Be5 {[%clk 0:00:05]}  Qc1+ {[%clk 0:00:06]} 39. Kg2 {[%clk 0:00:02]}  Qg5+ {[%clk 0:00:06]} 40. Bg3 {[%clk 0:00:00]}  Qxd8 {[%clk 0:00:06]} 0-1


[Site "https://www.chess.com"]